bitfinex/quotes_ETHUSD_20251122
["timestamp","ask_amount","ask_price","bid_price","bid_amount"]
[1763840341250,11.4136433,2754.1,2754.0,0.001]
[1763840341543,15.04459351,2754.1,2754.0,0.001]
[1763840342241,2.5108463,2754.1,2754.0,0.001]
[1763840342441,3.08055935,2754.1,2754.0,0.001]
[1763840343645,3.20255935,2754.1,2754.0,0.001]
[1763840344415,2.6328463,2754.1,2754.0,0.001]
[1763840345013,6.3128603,2754.1,2754.0,0.001]
[1763840345432,6.0368603,2754.1,2754.0,0.001]
[1763840345841,2.6328463,2754.1,2754.0,0.001]
[1763840347455,5.2468603,2754.1,2754.0,0.001]
[1763840347793,5.2468603,2754.1,2752.1,0.90699264]
[1763840347794,30.0,2753.4,2752.1,0.90699264]
[1763840348059,1.8635411,2753.7,2750.8,0.105]
[1763840348060,0.405504,2751.8,2750.8,0.105]
[1763840348222,0.405504,2751.6,2750.8,0.105]
[1763840348622,0.405504,2752.1,2751.5,0.105]
[1763840348848,0.405504,2752.1,2751.6,0.105]
[1763840349145,0.405504,2752.2,2751.6,0.105]
[1763840350817,0.405504,2752.0,2751.0,0.105]
[1763840351458,0.405504,2752.0,2751.0,0.205]
[1763840351746,0.405504,2752.0,2751.9,0.105]
[1763840352154,0.405504,2752.0,2750.3,0.73441959]
[1763840352155,4.5049,2751.9,2750.3,0.73441959]
[1763840352361,4.5049,2751.9,2749.1,2.85526462]
[1763840352362,0.405504,2751.2,2750.2,0.105]
[1763840352527,0.405504,2751.0,2750.2,0.105]
[1763840353054,0.405504,2750.8,2750.2,0.105]
[1763840355393,0.405504,2750.8,2750.2,3.74103801]
[1763840355657,0.405504,2750.8,2750.3,0.3741038]
[1763840356743,0.405504,2751.3,2750.7,0.105]
[1763840356945,0.405504,2751.3,2750.8,0.105]
[1763840357356,0.6086,2751.6,2750.8,0.21]
[1763840357650,0.405504,2751.5,2750.8,0.21]
[1763840357859,0.405504,2751.5,2751.3,0.001]
[1763840359666,0.123,2751.6,2751.3,0.001]
[1763840359667,0.405504,2751.7,2751.4,0.105]
[1763840360334,0.405504,2751.8,2751.4,0.105]
[1763840362648,0.123,2752.2,2751.7,0.105]
[1763840362850,0.405504,2752.1,2751.8,0.105]
[1763840363272,0.123,2752.3,2752.0,0.105]
[1763840363485,0.123,2752.3,2751.6,0.105]
[1763840363667,0.405504,2752.2,2751.6,0.105]
[1763840363997,0.4856,2752.3,2751.6,0.105]
[1763840364151,0.6086,2752.8,2751.6,0.105]
[1763840364350,0.405504,2752.6,2751.6,0.105]
[1763840364577,0.405504,2752.6,2751.4,3.86244575]
[1763840364779,0.405504,2752.4,2751.4,3.86244575]
[1763840365278,0.405504,2752.7,2751.5,0.105]
[1763840365480,0.405504,2752.3,2751.5,0.105]
[1763840365786,0.405504,2752.3,2751.6,0.37395061]
[1763840365981,0.405504,2752.2,2751.5,0.105]
[1763840366183,0.405504,2752.2,2751.3,0.124]
[1763840366479,0.891104,2752.2,2751.3,0.124]
[1763840366688,0.891104,2752.2,2751.3,0.001]
[1763840366881,0.4856,2752.1,2751.3,0.001]
[1763840367187,0.405504,2752.0,2751.3,0.38737218]
[1763840367366,0.405504,2752.0,2751.3,0.001]
[1763840367566,0.405504,2751.8,2751.3,0.001]
[1763840367956,0.891104,2751.8,2751.3,0.001]
[1763840371685,0.528504,2752.2,2751.7,0.105]
[1763840371985,0.528504,2752.2,2751.8,0.105]
[1763840372577,1.014104,2752.2,2751.3,0.001]
[1763840373366,1.014104,2752.2,2751.3,3.63564544]
[1763840373562,1.014104,2752.2,2751.4,0.37356454]
[1763840374199,0.33736789,2752.1,2751.4,0.37356454]
[1763840374404,0.33736789,2752.1,2751.4,0.47856454]
[1763840374702,0.405504,2752.0,2751.5,0.105]
[1763840376212,0.405504,2752.1,2751.4,0.49656454]
[1763840376418,0.33814175,2752.0,2751.3,0.001]
[1763840376706,0.405504,2751.9,2751.4,0.123]
[1763840376880,0.594804,2751.9,2751.4,0.123]
[1763840377084,1.056404,2751.9,2751.4,0.123]
[1763840377288,0.405504,2752.1,2751.5,0.105]
[1763840377526,0.405504,2751.9,2751.5,0.205]
[1763840377806,0.405504,2751.9,2751.5,0.60135122]
[1763840378309,1.056404,2752.2,2751.5,0.39635122]
[1763840378605,0.33864604,2752.1,2751.5,0.39635122]
[1763840378789,0.405504,2751.9,2751.5,0.39635122]
[1763840379205,0.405504,2751.9,2751.5,0.50135122]
[1763840379505,0.405504,2751.9,2751.8,0.105]
[1763840381106,0.405504,2752.2,2751.8,0.21]
[1763840381806,0.405504,2752.5,2752.1,0.105]
[1763840382016,0.405504,2752.3,2752.2,0.105]
[1763840382816,0.405504,2752.6,2752.2,0.105]
[1763840383009,0.33873915,2752.5,2752.2,0.105]
[1763840383415,0.123,2752.7,2752.4,0.105]
[1763840383719,0.405504,2752.6,2752.4,0.105]
[1763840384708,0.405504,2752.6,2752.5,0.105]
[1763840384906,0.405504,2752.9,2752.5,0.105]
[1763840385113,0.405504,2752.7,2752.6,0.105]
[1763840385506,0.405504,2753.0,2752.6,0.105]
[1763840385711,0.5747,2753.1,2752.6,0.105]
[1763840386830,0.405504,2753.0,2752.6,0.105]
[1763840387485,0.90899264,2753.7,2752.6,0.105]
[1763840387687,0.4517,2753.5,2752.6,0.105]
[1763840387916,0.405504,2753.3,2752.6,0.105]
[1763840388120,0.405504,2753.1,2752.6,0.105]
[1763840388416,0.4517,2753.3,2752.6,0.105]
[1763840388722,0.405504,2753.1,2752.6,0.105]
[1763840389116,0.405504,2753.0,2752.6,0.105]
[1763840392446,0.4983,2752.7,2751.3,0.001]
[1763840392725,5.200079,2752.9,2751.3,0.001]
[1763840392726,1.24231221,2752.6,2751.3,3.73562811]
[1763840393025,1.24231221,2752.6,2751.5,0.001]
[1763840393026,0.405504,2752.4,2751.5,0.001]
[1763840393225,0.123,2752.3,2751.5,0.001]
[1763840393529,0.5747,2752.3,2751.5,0.001]
[1763840394120,0.405504,2752.1,2751.5,0.001]
[1763840394914,0.123,2752.4,2752.0,0.105]
[1763840395119,0.405504,2752.3,2752.0,0.105]
[1763840395301,0.405504,2752.3,2751.5,0.106]
[1763840395504,0.405504,2752.3,2751.7,0.1]
[1763840395708,0.405504,2752.3,2751.6,0.123]
[1763840396501,0.857204,2752.3,2751.6,0.123]
[1763840398103,0.405504,2752.3,2751.7,0.105]
[1763840398401,0.405504,2752.3,2751.8,0.1]
[1763840399041,0.4517,2752.5,2751.8,3.63389748]
[1763840399335,0.405504,2752.4,2751.5,0.206]
[1763840399512,0.405504,2752.4,2751.6,0.123]
[1763840399712,0.405504,2752.2,2751.6,0.123]
[1763840400943,0.405504,2752.5,2751.6,0.123]
[1763840401235,0.405504,2752.0,2751.5,0.001]
[1763840401401,0.405504,2752.5,2751.7,0.1]
[1763840401600,0.857204,2752.5,2752.0,0.105]
[1763840401924,0.857204,2752.5,2751.7,0.1]
[1763840402125,0.4517,2752.4,2751.6,0.205]
[1763840402913,0.405504,2752.3,2751.7,3.63411709]
[1763840403531,0.123,2752.8,2751.7,3.63411709]
[1763840403532,0.405504,2752.5,2751.7,3.73411709]
[1763840403730,0.405504,2752.5,2751.8,0.105]
[1763840403934,0.405504,2752.7,2751.9,0.223]
[1763840404538,0.405504,2752.7,2752.0,0.0363372]
[1763840404742,0.857204,2752.7,2751.9,0.328]
[1763840404926,0.857204,2752.7,2752.0,3.63372093]
[1763840405136,0.405504,2752.8,2752.1,0.03633588]
[1763840405333,0.1868,2752.9,2752.1,0.105]
[1763840405519,0.4517,2753.0,2752.3,0.1]
[1763840405851,0.405504,2753.0,2752.3,0.328]
[1763840406225,0.405504,2752.8,2752.3,0.123]
[1763840406412,0.405504,2752.6,2752.3,0.123]
[1763840406840,0.4558,2752.6,2752.3,0.123]
[1763840407448,0.4558,2752.6,2751.5,3.63535084]
[1763840407449,0.4541,2752.4,2751.5,0.001]
[1763840407746,0.4558,2752.6,2751.6,7.90941709]
[1763840407926,0.4558,2752.8,2752.3,0.105]
[1763840408244,0.405504,2752.7,2751.7,0.105]
[1763840408549,0.405504,2752.7,2751.9,0.1]
[1763840408848,0.405504,2752.5,2751.6,9.45115709]
[1763840409051,0.405504,2752.5,2751.7,0.1]
[1763840409207,0.405504,2752.4,2751.6,5.27598916]
[1763840409409,0.405504,2752.4,2751.7,0.123]
[1763840409643,0.4558,2752.3,2751.7,0.123]
[1763840409947,0.4558,2752.3,2751.6,5.27598916]
[1763840409948,0.405504,2752.2,2751.6,5.27598916]
[1763840410250,0.405504,2752.2,2751.7,0.123]
[1763840410857,0.4558,2752.2,2752.0,0.001]
[1763840411327,0.4541,2752.1,2752.0,0.001]
[1763840411733,0.9099,2752.1,2752.0,0.001]
[1763840412759,1.315404,2752.1,2752.0,0.001]
[1763840413468,0.859604,2752.1,2752.0,0.001]
[1763840413637,0.859604,2752.1,2752.0,0.106]
[1763840413638,0.405504,2752.1,2752.0,0.106]
[1763840414861,0.405504,2752.1,2752.0,0.001]
[1763840415248,0.859604,2752.1,2752.0,0.001]
[1763840415426,1.315404,2752.1,2752.0,0.001]
[1763840419432,1.9132825,2752.1,2752.0,0.001]
[1763840420135,2.25276795,2752.1,2752.0,0.001]
[1763840420334,1.65488945,2752.1,2752.0,0.001]
[1763840420860,6.53386122,2752.1,2752.0,0.001]
[1763840421180,9.66657975,2752.1,2752.0,0.001]
[1763840421933,12.50534475,2752.1,2752.0,0.001]
[1763840422354,7.88023786,2752.1,2752.0,0.001]
[1763840422561,3.72558817,2752.1,2752.0,0.001]
[1763840422776,2.68491786,2752.1,2752.0,0.001]
[1763840424576,2.10611786,2752.1,2752.0,0.001]
[1763840424732,2.22911786,2752.1,2752.0,0.001]
[1763840424932,2.68491786,2752.1,2752.0,0.001]
[1763840425238,2.34539664,2752.1,2752.0,0.001]
[1763840425438,1.93989264,2752.1,2752.0,0.001]
[1763840425638,2.34539664,2752.1,2752.0,0.001]
[1763840426533,0.90699264,2752.1,2752.0,0.106]
[1763840426943,1.31249664,2752.1,2752.0,0.001]
[1763840427168,1.31249664,2752.1,2752.0,0.106]
[1763840427479,1.31249664,2752.1,2752.0,0.001]
[1763840428248,1.31249664,2752.1,2752.0,0.106]
[1763840429678,1.31249664,2752.1,2752.0,0.001]
[1763840429846,2.22239664,2752.1,2752.0,0.001]
[1763840430554,1.76659664,2752.1,2752.0,0.001]
[1763840431675,1.31249664,2752.1,2752.0,0.001]
[1763840432577,1.76659664,2752.1,2752.0,0.001]
[1763840432780,1.31249664,2752.1,2752.0,0.001]
[1763840433368,1.76659664,2752.1,2752.0,0.001]
[1763840438029,2.26479664,2752.1,2752.0,0.001]
[1763840438202,4.78970137,2752.1,2752.0,0.001]
[1763840438416,2.4487763,2752.1,2752.0,0.001]
[1763840438782,2.78849224,2752.1,2752.0,0.001]
[1763840439204,2.78853852,2752.1,2752.0,0.001]
[1763840439595,2.4487763,2752.1,2752.0,0.001]
[1763840447939,2.59441912,2752.1,2752.0,0.001]
[1763840451323,2.93440623,2752.1,2752.0,0.001]
[1763840452456,3.05740623,2752.1,2752.0,0.001]
[1763840460366,6.73537523,2752.1,2752.0,0.001]
[1763840460748,8.95138109,2752.1,2752.0,0.001]
[1763840460946,28.20311898,2752.1,2752.0,0.001]
[1763840461144,20.38126498,2752.1,2752.0,0.001]
[1763840461345,19.13305598,2752.1,2752.0,0.001]
[1763840461550,9.68729509,2752.1,2752.0,0.001]
[1763840461951,10.48096409,2752.1,2752.0,0.001]
[1763840462158,14.11455298,2752.1,2752.0,0.001]
[1763840463277,11.02719509,2752.1,2752.0,0.001]
[1763840463476,10.58919509,2752.1,2752.0,0.001]
[1763840463681,11.15935369,2752.1,2752.0,0.001]
[1763840464183,11.61935369,2752.1,2752.0,0.001]
[1763840464846,8.89912269,2752.1,2752.0,0.001]
[1763840465259,10.11312269,2752.1,2752.0,0.001]
[1763840466953,13.74671158,2752.1,2752.0,0.001]
[1763840467783,17.13259358,2752.1,2752.0,0.001]
[1763840468653,10.87448679,2752.1,2752.0,0.001]
[1763840468847,24.90290179,2752.1,2752.0,0.001]
[1763840469786,27.29093779,2752.1,2752.0,0.001]
[1763840470356,0.405504,2751.8,2751.7,0.001]
[1763840470556,28.74554996,2751.8,2751.7,0.001]
[1763840470756,32.37953498,2751.8,2751.7,0.001]
[1763840470978,33.08735682,2751.8,2751.7,0.001]
[1763840471289,33.62899367,2751.8,2751.7,0.001]
[1763840471898,34.96487667,2751.8,2751.7,0.001]
[1763840472777,42.62978467,2751.8,2751.7,0.001]
[1763840473389,49.06978467,2751.8,2751.7,0.001]
[1763840473902,49.64005268,2751.8,2751.7,0.001]
[1763840474706,52.70376969,2751.8,2751.5,0.001]
[1763840475004,24.2064408,2751.6,2751.5,0.001]
[1763840475181,25.10854327,2751.6,2751.5,0.001]
[1763840475500,25.57464327,2751.6,2751.5,0.001]
[1763840476006,25.57464327,2751.6,2749.5,3.63693388]
[1763840476007,0.405504,2750.7,2749.4,0.106]
[1763840476221,1.31249664,2749.9,2749.4,0.106]
[1763840476379,0.405504,2749.7,2749.4,0.212]
[1763840476892,0.405504,2749.7,2749.6,0.106]
[1763840477326,0.1845,2751.1,2749.6,6.45847349]
[1763840477469,0.123,2751.0,2749.7,0.212]
[1763840477675,1.0929539,2750.7,2749.7,0.212]
[1763840477871,0.405504,2750.6,2749.8,0.106]
[1763840478180,1.0929539,2750.7,2750.6,0.106]
[1763840478397,0.123,2750.7,2750.6,0.106]
[1763840478572,0.528504,2750.7,2750.6,0.106]
[1763840479501,0.992904,2750.7,2750.0,0.106]
[1763840479802,0.992904,2750.7,2749.8,3.63653525]
[1763840479980,0.528504,2750.7,2750.6,0.106]
[1763840480372,0.528504,2750.7,2750.3,0.106]
[1763840480572,0.528504,2750.7,2750.6,0.106]
[1763840482368,0.528504,2750.7,2750.6,0.212]
[1763840482788,0.528504,2750.7,2750.6,0.106]
[1763840482973,0.405504,2750.6,2750.1,0.106]
[1763840483671,0.405504,2750.1,2749.4,0.106]
[1763840483872,0.405504,2750.1,2750.0,0.106]
[1763840484407,0.405504,2750.1,2749.6,0.106]
[1763840485102,0.405504,2750.1,2750.0,0.106]
[1763840487038,0.871604,2750.1,2750.0,0.106]
[1763840487206,0.871604,2750.1,2750.0,0.212]
[1763840487400,0.405504,2750.1,2750.0,0.212]
[1763840487945,0.405504,2750.4,2750.0,0.212]
[1763840488130,0.405504,2750.4,2750.1,0.106]
[1763840488317,0.405504,2750.4,2750.3,0.106]
[1763840489341,1.37309264,2751.0,2750.3,0.212]
[1763840489509,0.405504,2750.8,2750.3,0.106]
[1763840489709,0.405504,2750.6,2750.3,0.106]
[1763840489947,0.405504,2750.4,2750.3,0.106]
[1763840490316,0.405504,2750.4,2750.3,0.212]
[1763840491228,0.405504,2750.6,2750.3,0.212]
[1763840491405,0.405504,2750.6,2750.1,7.27236335]
[1763840491609,0.123,2750.8,2750.5,0.106]
[1763840491910,0.123,2750.8,2750.4,0.106]
[1763840492106,0.123,2750.8,2750.7,0.106]
[1763840493242,0.4661,2751.4,2750.7,0.212]
[1763840493429,0.46171969,2751.3,2750.8,0.106]
[1763840493621,0.3848132,2751.2,2750.8,0.106]
[1763840493818,0.405504,2751.1,2750.8,0.212]
[1763840494019,0.1845,2751.8,2751.0,0.106]
[1763840494234,0.123,2751.7,2751.1,0.106]
[1763840494437,0.405504,2751.3,2751.1,0.106]
[1763840494745,0.405504,2751.4,2751.1,0.106]
[1763840495043,0.405504,2751.3,2751.1,0.106]
[1763840495435,0.405504,2751.3,2751.2,0.212]
[1763840496041,0.407504,2751.3,2751.2,0.212]
[1763840496339,0.407504,2751.3,2751.2,0.106]
[1763840498043,0.407504,2751.3,2750.8,0.106]
[1763840498343,0.407504,2751.3,2749.9,2.54873264]
[1763840498524,0.125,2751.3,2750.5,0.106]
[1763840498725,0.405504,2751.2,2750.5,0.49259338]
[1763840499247,0.405504,2751.2,2750.6,0.106]
[1763840499446,0.405504,2751.2,2751.1,0.106]
[1763840499849,0.530504,2751.3,2751.1,0.106]
[1763840500022,0.530504,2751.3,2751.2,0.106]
[1763840502043,0.997004,2751.3,2750.5,0.38659338]
[1763840502213,0.997004,2751.3,2750.6,0.106]
[1763840503037,0.905104,2751.2,2750.4,0.123]
[1763840503446,0.905104,2751.2,2750.4,0.229]
[1763840503645,0.905104,2751.2,2750.4,3.86483295]
[1763840503833,0.905104,2751.2,2750.4,3.74183295]
[1763840504032,0.905104,2751.2,2750.4,3.63583295]
[1763840507957,0.125,2751.3,2750.3,3.63692694]
[1763840507958,0.405504,2751.1,2750.3,3.63692694]
[1763840508254,0.905104,2751.1,2750.3,3.75992694]
[1763840508444,0.905104,2751.1,2750.3,0.124]
[1763840508754,0.4996,2751.0,2750.3,3.75996551]
[1763840509323,0.4996,2751.0,2750.3,0.124]
[1763840509526,0.405504,2750.8,2750.3,0.124]
[1763840509856,0.405504,2750.8,2750.3,3.75994087]
[1763840510163,0.405504,2750.6,2750.3,0.001]
[1763840511768,0.405504,2750.8,2750.5,0.106]
[1763840513935,0.405504,2750.8,2750.3,0.107]
[1763840514326,0.405504,2750.6,2750.3,0.001]
[1763840514760,0.905104,2750.6,2750.3,0.001]
[1763840515153,0.405504,2750.8,2750.3,0.001]
[1763840515548,0.405504,2750.6,2750.3,0.001]
[1763840516051,0.123,2750.9,2750.3,0.001]
[1763840516052,0.872004,2750.4,2750.3,0.001]
[1763840516973,1.371604,2750.4,2750.3,0.001]
[1763840518052,1.8461776,2750.4,2750.3,0.001]
[1763840518378,5.09730957,2750.4,2750.3,0.001]
[1763840520938,9.81550842,2750.4,2750.3,0.001]
[1763840521247,14.4239012,2750.4,2750.3,0.001]
[1763840521442,14.1533112,2750.4,2750.3,0.001]
[1763840522173,8.61024542,2750.4,2750.3,0.001]
[1763840522368,12.2460802,2750.4,2750.3,0.001]
[1763840523042,9.0724222,2750.4,2750.3,0.001]
[1763840523254,13.0618292,2750.4,2750.3,0.001]
[1763840523581,8.96697342,2750.4,2750.3,0.001]
[1763840524286,11.7892722,2750.4,2750.3,0.001]
[1763840525204,15.2362042,2750.4,2750.3,0.001]
[1763840525403,13.8427042,2750.4,2750.3,0.001]
[1763840526204,14.2207042,2750.4,2750.3,0.001]
[1763840526895,16.18384353,2750.4,2750.3,0.001]
[1763840527093,13.8397042,2750.4,2750.3,0.001]
[1763840527297,24.7300122,2750.4,2750.3,0.001]
[1763840527485,17.7390732,2750.4,2750.3,0.001]
[1763840528002,17.4003622,2750.4,2750.3,0.001]
[1763840528295,17.7309962,2750.4,2750.3,0.001]
[1763840528703,17.87676427,2750.4,2750.3,0.001]
[1763840529377,20.8727796,2750.4,2750.3,0.001]
[1763840530406,34.7532476,2750.4,2750.3,0.001]
[1763840530708,34.7532476,2750.4,2750.0,0.001]
[1763840530709,28.21434364,2750.1,2750.0,0.001]
[1763840530913,34.40039445,2750.1,2750.0,0.001]
[1763840531211,34.40039445,2750.1,2749.7,0.001]
[1763840531212,49.62328865,2750.1,2749.7,0.001]
[1763840531422,14.25474097,2749.8,2749.7,0.001]
[1763840531585,4.65421382,2749.8,2749.7,0.001]
[1763840531908,4.95187735,2749.8,2749.7,0.001]
[1763840532112,6.53045748,2749.8,2749.7,0.001]
[1763840532297,9.66179179,2749.8,2749.7,0.001]
[1763840534316,0.405504,2750.1,2749.7,0.107]
[1763840534477,0.405504,2749.8,2749.7,0.001]
[1763840534876,0.405504,2749.8,2749.7,0.107]
[1763840537405,1.358204,2749.8,2749.7,0.001]
[1763840537606,1.59702366,2749.8,2749.7,0.001]
[1763840537809,2.5040163,2749.8,2749.7,0.001]
[1763840537988,2.26519664,2749.8,2749.7,0.001]
[1763840538320,1.77999664,2749.8,2749.7,0.001]
[1763840538498,0.405504,2749.8,2749.7,0.107]
[1763840539537,3.63597882,2750.3,2749.7,0.107]
[1763840539538,0.405504,2750.0,2749.7,0.213]
[1763840539825,0.6082,2750.6,2749.8,0.106]
[1763840540019,1.31249664,2750.4,2749.9,0.106]
[1763840540386,1.79769664,2750.4,2749.9,0.106]
[1763840540819,0.405504,2750.2,2749.7,0.001]
[1763840541023,0.528504,2750.2,2749.7,0.001]
[1763840541200,1.013704,2750.2,2749.7,0.001]
[1763840541622,0.405504,2750.0,2749.7,0.001]
[1763840542046,1.31249664,2750.0,2749.7,0.001]
[1763840542239,1.73898024,2750.0,2749.7,0.001]
[1763840542534,2.82933933,2750.1,2749.9,0.106]
[1763840542535,0.405504,2750.1,2749.9,0.106]
[1763840542690,0.405504,2750.1,2750.0,0.106]
[1763840543091,0.123,2750.2,2750.0,0.106]
[1763840543541,0.123,2750.2,2749.7,0.107]
[1763840544842,0.405504,2750.1,2749.7,0.107]
[1763840545041,0.123,2750.2,2749.7,0.107]
[1763840545243,0.123,2750.2,2750.0,0.106]
[1763840546765,0.123,2750.2,2749.7,0.107]
[1763840546766,2.26519664,2750.1,2749.7,0.001]
[1763840547088,0.405504,2749.8,2749.7,0.001]
[1763840547434,0.873004,2749.8,2749.7,0.001]
[1763840548665,0.996004,2749.8,2749.7,0.001]
[1763840548835,1.481204,2749.8,2749.7,0.001]
[1763840549166,0.996004,2749.8,2749.7,0.001]
[1763840551480,1.9544376,2749.8,2749.7,0.001]
[1763840552585,0.996004,2749.8,2749.7,0.001]
[1763840553153,0.528504,2749.8,2749.7,0.001]
[1763840553390,0.528504,2749.8,2749.7,0.107]
[1763840556555,0.405504,2749.8,2749.7,0.107]
[1763840560103,1.385204,2749.8,2749.7,0.001]
[1763840560458,0.890404,2749.8,2749.7,0.001]
[1763840561602,1.385204,2749.8,2749.7,0.001]
[1763840561904,1.8611376,2749.8,2749.7,0.001]
[1763840562958,2.20054956,2749.8,2749.7,0.001]
[1763840563160,1.8611376,2749.8,2749.7,0.001]
[1763840563361,2.20065443,2749.8,2749.7,0.001]
[1763840568928,4.54479376,2749.8,2749.7,0.001]
[1763840570708,2.20065443,2749.8,2749.7,0.001]
[1763840571111,1.72472083,2749.8,2749.7,0.001]
[1763840579839,1.22992083,2749.8,2749.7,0.001]
[1763840580400,0.74502083,2749.8,2749.7,0.107]
[1763840581115,0.86702083,2749.8,2749.7,0.107]
[1763840581710,0.405504,2749.8,2749.7,0.213]
[1763840582012,0.002,2750.0,2749.7,0.213]
[1763840582324,0.002,2750.0,2749.9,0.106]
[1763840582707,0.002,2750.0,2749.9,0.212]
[1763840584210,0.002,2750.0,2749.9,0.106]
[1763840584608,0.002,2750.0,2749.9,0.212]
[1763840585808,0.002,2750.0,2749.9,3.74249587]
[1763840586013,0.002,2750.0,2749.9,0.73285593]
[1763840588650,0.002,2750.0,2749.9,4.3693518]
[1763840588825,0.002,2750.0,2749.9,0.73285593]
[1763840589031,0.002,2750.0,2749.9,3.84849587]
[1763840589920,0.002,2750.0,2749.9,3.94849587]
[1763840596735,0.002,2750.0,2749.9,3.94949587]
[1763840597773,0.002,2750.6,2750.3,0.1]
[1763840598074,0.002,2750.6,2750.5,0.106]
[1763840599344,0.002,2750.6,2750.5,0.49249635]
[1763840599653,0.002,2750.6,2750.5,4.12819894]
[1763840604759,0.002,2750.6,2750.5,0.49249635]
[1763840605847,0.4907,2750.6,2750.0,6.14935064]
[1763840606053,0.4887,2750.5,2750.1,3.7592314]
[1763840606265,0.961,2750.5,2750.1,3.7592314]
[1763840606982,0.4887,2750.5,2750.1,3.7592314]
[1763840607671,0.407504,2750.6,2750.1,3.7592314]
[1763840607845,0.407504,2750.6,2750.1,3.8652314]
[1763840608371,0.002,2750.6,2750.5,0.106]
[1763840608953,0.002,2750.6,2750.5,0.14235702]
[1763840609151,0.002,2750.6,2750.5,0.106]
[1763840609358,0.002,2750.6,2750.5,0.48018312]
[1763840609564,0.002,2750.6,2750.5,0.106]
[1763840611287,0.002,2750.6,2750.5,3.74170259]
[1763840611586,0.002,2750.6,2750.5,0.106]
[1763840611766,0.002,2750.6,2750.3,3.63592128]
[1763840611955,0.002,2750.6,2750.4,0.122]
[1763840612155,0.002,2750.6,2750.4,0.49779213]
[1763840614986,0.4887,2750.5,2750.4,0.37579213]
[1763840615178,0.4887,2750.5,2750.4,0.49779213]
[1763840616086,0.4887,2750.5,2750.3,0.001]
[1763840616284,0.9339,2750.4,2750.3,0.123]
[1763840620971,0.4539,2750.4,2750.3,0.123]
[1763840621173,0.4565,2750.6,2750.3,3.75896698]
[1763840623525,0.002,2750.6,2750.3,3.75896698]
[1763840623820,0.4565,2750.6,2750.3,3.75896698]
[1763840624771,0.4565,2750.6,2750.3,3.63696698]
[1763840625206,0.4534,2750.4,2750.3,0.001]
[1763840625582,0.9079,2750.4,2750.3,0.001]
[1763840625778,1.313404,2750.4,2750.3,0.001]
[1763840627124,0.002,2750.6,2750.3,3.10200432]
[1763840627301,0.002,2750.6,2750.5,0.206]
[1763840627482,0.002,2750.6,2750.5,0.36435702]
[1763840627683,0.002,2750.6,2750.5,3.94770259]
[1763840627918,0.002,2750.6,2750.5,4.06970259]
[1763840628114,0.002,2750.6,2750.5,4.59973662]
[1763840630897,0.002,2750.6,2750.5,6.941657]
[1763840631921,0.002,2750.6,2750.5,7.0873205]
[1763840634090,0.002,2750.6,2750.5,6.9653205]
[1763840634290,0.002,2750.6,2750.5,7.0873205]
[1763840641168,0.002,2750.7,2750.6,1.00699264]
[1763840641458,0.002,2750.7,2750.6,5.43091439]
[1763840641612,0.002,2750.9,2750.8,2.44192038]
[1763840641817,0.002,2750.9,2750.8,3.57691302]
[1763840642039,0.002,2750.9,2750.8,3.82854841]
[1763840642240,0.002,2750.9,2750.8,4.35858244]
[1763840643366,0.002,2750.9,2750.8,7.99388853]
[1763840643646,0.002,2750.9,2750.8,10.33580891]
[1763840644840,0.002,2750.9,2750.8,7.99388853]
[1763840645655,0.002,2750.9,2750.8,9.63562853]
[1763840650639,0.002,2751.2,2750.9,0.90699264]
[1763840650845,0.002,2751.2,2750.9,3.23665439]
[1763840651450,0.002,2751.2,2750.9,3.38228978]
[1763840653057,0.002,2751.2,2750.9,6.91146372]
[1763840653220,0.9348,2751.0,2750.9,5.89847108]
[1763840653427,0.4796,2751.0,2750.9,5.87483569]
[1763840653625,0.002,2751.0,2750.9,5.87483569]
[1763840655050,0.4796,2751.0,2750.9,5.75283569]
[1763840655265,0.9348,2751.0,2750.9,5.87483569]
[1763840659288,0.9348,2751.0,2750.9,5.39891394]
[1763840660374,0.002,2751.0,2750.9,3.85717394]
[1763840660579,0.4796,2751.0,2750.9,3.85717394]
[1763840660780,0.9348,2751.0,2750.9,3.85717394]
[1763840663459,0.002,2751.0,2750.9,3.96317394]
[1763840665911,0.002,2751.0,2750.9,3.96417394]
[1763840666268,0.002,2751.0,2750.9,5.60591394]
[1763840668633,0.002,2751.0,2750.9,7.94783432]
[1763840668829,0.002,2751.0,2750.9,5.71191394]
[1763840669129,0.002,2751.0,2750.9,8.19947449]
[1763840669341,0.002,2751.0,2750.9,5.85755411]
[1763840670038,0.002,2751.0,2750.9,8.19947449]
[1763840671145,0.002,2751.0,2750.9,5.75155411]
[1763840671704,0.4796,2751.0,2750.9,5.49991394]
[1763840671903,0.002,2751.0,2750.9,5.60591394]
[1763840672531,0.002,2751.0,2750.9,3.96417394]
[1763840673018,0.002,2751.0,2750.9,4.10981411]
[1763840674132,0.002,2751.0,2750.9,4.00381411]
[1763840674436,0.002,2751.0,2750.9,3.85817394]
[1763840675751,0.9348,2751.0,2750.9,3.63617394]
[1763840675925,0.9348,2751.0,2750.9,3.85817394]